Cogmind - Beta 15 @@@ ROGUE MODE // 2025.09.25 @ 20:59:27 Player: Figgis Result: Self-destructed Performance ------------- Evolutions (2) 1000 Regions Visited (5) 1000 Robots Destroyed (25) 125 Value Destroyed (581) 581 Prototype IDs (38) 760 Alien Tech Used (0) 0 Bonus (460) 460 TOTAL SCORE: 3926 Bonus ------- Follower Combat Kills 160 Aligned with FarCom 300 Cogmind --------- Core Integrity 424/550 Matter 159/300 Energy 265/265 System Corruption 0% Temperature Cool (0) Movement Walking (195) Ox1 Location -8/Materials Parts ------- > --- POWER (1) -------- Reinforced Ion Engine > --- PROPULSION (3) --- Aluminum Leg Improved Titanium Leg > --- UTILITY (5) ------ Large Storage Unit Improved Terrain Scanner Targeting Computer > --- WEAPON (2) ------- Assault Rifle Improved Assault Rifle > --- INVENTORY (15) --- Light Deuterium Engine Light Nuclear Core Aluminum Leg Aluminum Leg Aluminum Leg Improved Titanium Leg Improved Titanium Leg Improved Titanium Leg Cesium-ion Thruster Small Laser Rocket Launcher Field Lobotomy Kit (1) Mining Laser Peak State ------------ > --- POWER ------------ Ion Engine > --- PROPULSION ------- Aluminum Leg Aluminum Leg Improved Titanium Leg > --- UTILITY ---------- Large Storage Unit Improved Terrain Scanner Targeting Computer Propulsion Shielding Light Armor Plating > --- WEAPON ----------- Assault Rifle Field Lobotomy Kit > --- INVENTORY -------- Reinforced Ion Engine Light Deuterium Engine Light Nuclear Core Aluminum Leg Improved Titanium Leg Improved Titanium Leg Improved Titanium Leg Cesium-ion Thruster Small Laser Assault Rifle Rocket Launcher Mining Laser [Rating: 27] Favorites ----------- Power Light Ion Engine Engine Light Ion Engine Propulsion Aluminum Leg Leg Aluminum Leg Utility Large Storage Unit Device Improved Terrain Scanner Storage Large Storage Unit Processor Targeting Computer Protection Light Armor Plating Weapon Assault Rifle Energy Gun Small Laser Ballistic Gun Assault Rifle Special Weapon Field Lobotomy Kit Special Melee Weapon Datajack Build | -11 -10 -10 -10 -9 -8 ------- Run | Yrd Mat Min Exi Min Mat Slots Evolved 4 | . . . . . 4 Power . | . . . . . . Propulsion 1 | . . . . . 1 Utility 3 | . . . . . 3 Weapon . | . . . . . . Parts Attached 24 | 3 5 . 2 7 7 Power 3 | 1 . . . 1 1 Engine 3 | 1 . . . 1 1 Core . | . . . . . . Reactor . | . . . . . . Propulsion 7 | 2 . . . 4 1 Treads . | . . . . . . Leg 7 | 2 . . . 4 1 Wheel . | . . . . . . Hover . | . . . . . . Flight . | . . . . . . Utility 6 | . 3 . . . 3 Device 1 | . . . . . 1 Storage 2 | . 2 . . . . Processor 1 | . 1 . . . . Hackware . | . . . . . . Protection 2 | . . . . . 2 Artifact . | . . . . . . Weapon 8 | . 2 . 2 2 2 Energy Gun 1 | . . . . . 1 Energy Cannon . | . . . . . . Ballistic Gun 5 | . 2 . . 2 1 Ballistic Cannon . | . . . . . . Launcher . | . . . . . . Special Weapon 1 | . . . 1 . . Impact Weapon . | . . . . . . Slashing Weapon . | . . . . . . Piercing Weapon . | . . . . . . Special Melee Weapon 1 | . . . 1 . . Unidentified Prototypes 1 | . . . . . 1 Parts Lost 11 | . . . . 4 7 Power 2 | . . . . 1 1 Propulsion 3 | . . . . 2 1 Utility 2 | . . . . . 2 Weapon 4 | . . . . 1 3 Highest Loss Streak 5 | . . . . 2 5 To Critical Strikes . | . . . . . . Average Backups 10 | 3 4 9 12 11 12 Power 1 | . 1 1 2 2 2 Propulsion 2 | . . 1 2 1 5 Utility 1 | . . 1 2 2 . Weapon 4 | 1 3 4 5 5 3 Tool/Special . | . . . . . . Unused Backups 13 | . 1 1 . . 11 Power 2 | . . . . . 2 Propulsion 7 | . . . . . 7 Utility . | . . . . . . Weapon 4 | . 1 1 . . 2 Tool/Special . | . . . . . . Average Slot Usage (%) 94 | . 89 100 100 97 83 Engine 12 | . 14 14 14 13 8 Leg 26 | . 28 28 28 25 22 Device 1 | . . . . . 7 Storage 12 | . 13 14 14 14 9 Processor 11 | . 5 14 14 14 9 Protection 1 | . . . . . 8 Ballistic Gun 22 | . 27 28 15 27 15 Special Melee Weapon 2 | . . . 12 . . Peak Build Rating 27 | 3 7 8 17 9 27 Average Rating 9 | 1 6 7 8 8 17 On Entrance 6 | . 3 7 8 9 9 Naked Turns . | . . . . . . Heaviest Build 41 | 3 27 27 27 29 41 Greatest Support 40 | 3 20 20 20 20 40 Greatest Overweight (x) 7 | . 2 1 1 7 1 Average Overweight (x) . | . . 1 1 1 . Largest Inventory Capacity 15 | 5 15 15 15 15 15 Average Capacity 14 | 5 13 15 15 15 15 Most Carried 14 | 5 6 12 13 13 14 Average Carried 10 | 3 4 9 12 11 12 Final Capacity 15 | 5 15 15 15 15 15 Final Carried 13 | 5 6 12 13 10 13 Class Distribution -------------------- 81% | Mutant 18% | Skirmisher Dominant Class ---------------- Mutant | -10/Materials Mutant | -10/Mines Mutant | -10/Exiles Mutant | -9/Mines Skirmisher | -8/Materials Resources | -11 -10 -10 -10 -9 -8 ----------- Run | Yrd Mat Min Exi Min Mat Matter Collected 885 | 221 18 172 . 248 226 Remotely . | . . . . . . Salvage Created 715 | . 18 165 . 283 249 Parts 57 | . 2 9 . 29 17 Haulers Intercepted . | . . . . . . Recyclers Shooed 1 | . . 1 . . . Parts Field Recycled . | . . . . . . Retrieved Matter . | . . . . . . Parts Self-Destructed . | . . . . . . Prevented . | . . . . . . Kills | -11 -10 -10 -10 -9 -8 ------- Run | Yrd Mat Min Exi Min Mat Combat Hostiles Destroyed 21 | . . 4 . 13 4 Guns 21 | . . 4 . 13 4 Classes Destroyed 7 | . 1 1 . 3 2 Builder 1 | . . . . . 1 Tunneler 1 | . . . . 1 . Watcher 2 | . 1 . . . 1 Swarmer 11 | . . . . 11 . Grunt 8 | . . 4 . 1 3 Brawler 1 | . . . . 1 . Sentry 1 | . . . . . 1 Best Kill Streak 5 | . 1 4 . 5 2 Combat Bots Only 4 | . . 4 . 4 1 Max Kills in Single Turn 1 | . 1 1 . 1 1 Gunslinging . | . . . . . . Exploded . | . . . . . . Melee . | . . . . . . Uniques/NPCs Destroyed . | . . . . . . Combat | -11 -10 -10 -10 -9 -8 -------- Run | Yrd Mat Min Exi Min Mat Hostile Shots Fired 147 | . . 21 . 75 51 Missed 27 | . . 5 . 14 8 Hits 120 | . . 16 . 61 43 Melee 1 | . . . . 1 . Projectile 119 | . . 16 . 60 43 Damage Taken 1462 | . . 217 . 544 701 Core 232 | . . 42 . 64 126 Absorbed by Shields . | . . . . . . Redirected to Shielding 52 | . . . . . 52 Core Remaining (%) 78 | 100 . . . 57 . Volleys Fired 93 | . 5 14 . 39 35 Largest 2 | . 2 2 . 2 2 Hottest 60 | . 40 40 . 40 60 Shots Fired 181 | . 10 28 . 78 65 Gun 177 | . 10 28 . 78 61 Cannon . | . . . . . . Launcher . | . . . . . . Special 4 | . . . . . 4 Kinetic 167 | . 10 28 . 78 51 Thermal 10 | . . . . . 10 Explosive . | . . . . . . Electromagnetic . | . . . . . . Robot Hit Streak 16 | . 4 16 . 6 7 Robot Miss Streak 5 | . 5 2 . 4 4 Penetration Max . | . . . . . . Secondary Targets 5 | . . 1 . 4 . Max Gunslinging Chain 1 | . . 1 . 1 . Shots Hit Robots 112 | . 4 22 4 42 40 Core Hits 40 | . 1 9 . 16 14 Critical Kills . | . . . . . . Critical Parts Destroyed 1 | . . . . . 1 Critical Strikes 1 | . . . . . 1 Destroy 1 | . . . . . 1 Melee Attacks 4 | . . . 4 . . Impact . | . . . . . . Slashing . | . . . . . . Piercing . | . . . . . . Sneak Attacks 4 | . . . 4 . . Combat Hostiles . | . . . . . . Follow-up Attacks . | . . . . . . Damage Inflicted 1316 | . 70 270 . 527 449 Guns 1316 | . 70 270 . 527 449 Cannons . | . . . . . . Explosions . | . . . . . . Melee . | . . . . . . Ramming . | . . . . . . Kinetic 1252 | . 70 270 . 527 385 Thermal 64 | . . . . . 64 Explosive . | . . . . . . Electromagnetic . | . . . . . . Impact . | . . . . . . Slashing . | . . . . . . Piercing . | . . . . . . Highest Corruption 4 | . 1 1 1 4 . Average Corruption 1 | . 1 1 1 3 . Corruption Purged . | . . . . . . Corruption Blocked . | . . . . . . Effects 17 | . 1 7 1 8 . Message Errors 4 | . . 3 . 1 . Matter Fused 6 | . . 3 . 3 . Heat Flow Errors 2 | . . . . 2 . Data Loss (minor) 1 | . . . . 1 . Data Loss (major) 1 | . 1 . . . . Alerts 3 | . . 1 1 1 . Overload Shots . | . . . . . . Overflow Damage . | . . . . . . Projectiles . | . . . . . . Explosions . | . . . . . . Melee . | . . . . . . Knockbacks . | . . . . . . Impact . | . . . . . . Kinetic . | . . . . . . Secondary . | . . . . . . Self-Inflicted Damage . | . . . . . . Shots . | . . . . . . Rammed . | . . . . . . Targets Rammed . | . . . . . . Kicked . | . . . . . . Crushed . | . . . . . . Highest Temperature 110 | . . 3 . 110 6 Average Temperature 36 | . . 2 . 60 4 Received Heat Transfer 510 | . . 108 . 60 342 Siege Activations . | . . . . . . Martial Activations . | . . . . . . Shielding Activations . | . . . . . . Robots Disrupted . | . . . . . . Combat Hostiles . | . . . . . . Robots Corrupted . | . . . . . . Combat Hostiles . | . . . . . . Parts Fried . | . . . . . . Impact Corruptions . | . . . . . . Robots Melted . | . . . . . . Combat Hostiles . | . . . . . . Parts Melted . | . . . . . . Heat Transferred 150 | . . . . . 150 Parts Sabotaged . | . . . . . . Parts Stolen . | . . . . . . Parts Stripped . | . . . . . . Power Chain Reactions . | . . . . . . Alert | -11 -10 -10 -10 -9 -8 ------- Run | Yrd Mat Min Exi Min Mat Maximum Alert Level . | . . . . . . Low Security (%) 100 | 100 100 100 . 100 100 Level 1 . | . . . . . . Level 2 . | . . . . . . Level 3 . | . . . . . . Level 4 . | . . . . . . Level 5 . | . . . . . . High Security . | . . . . . . Max Security . | . . . . . . Peak Influence 115 | . 7 80 . 115 65 Initial 37 | . . . . . 37 Average 18 | . . 12 . 55 18 Influence Increases 726 | . 16 100 . 305 305 Destroy 0b10 Robot/C 520 | . . 80 . 260 180 Destroy 0b10 Robot/NC 25 | . 5 . . 5 15 Destroy Leader 96 | . 2 20 . 40 34 Allied During Kill 10 | . . . . . 10 Successful Hack 14 | . 9 . . . 5 Destroy Structure 1 | . . . . . 1 Lose Combat Pursuer 60 | . . . . . 60 Influence Decreases 705 | . 16 100 . 210 379 Entered New Map 58 | . . . . . 58 Time Decay 479 | . 16 100 . 180 183 Lost Part 88 | . . . . 30 58 Lost Ally 80 | . . . . . 80 Squads Dispatched 3 | . 1 . . . 2 Investigation 2 | . 1 . . . 1 Extermination . | . . . . . . Reinforcement 1 | . . . . . 1 Assault . | . . . . . . Garrison . | . . . . . . Intercept . | . . . . . . Searches Triggered . | . . . . . . Construction Impeded . | . . . . . . Haulers Reinforced . | . . . . . . Active Scanning Responses . | . . . . . . Cargo Convoy Interrupts . | . . . . . . Stealth | -11 -10 -10 -10 -9 -8 --------- Run | Yrd Mat Min Exi Min Mat Distress Signals 4 | . . . . . 4 Communications Jammed . | . . . . . . Distress Signals . | . . . . . . Times Spotted 40 | . 5 5 . 13 17 Peak Tracking Total 5 | . 1 2 . 4 5 Tactical Retreats 2 | . . . . . 2 Traps | -11 -10 -10 -10 -9 -8 ------- Run | Yrd Mat Min Exi Min Mat Traps Triggered 2 | . 2 . . . . Indirectly . | . . . . . . Trap Hack Attempts . | . . . . . . Triggered . | . . . . . . Disarmed . | . . . . . . Reprogrammed . | . . . . . . Reused . | . . . . . . Traps Extracted . | . . . . . . Installed . | . . . . . . Triggered . | . . . . . . Machines | -11 -10 -10 -10 -9 -8 ---------- Run | Yrd Mat Min Exi Min Mat Machines Disabled 1 | . 1 . . . . Max in Single Turn 1 | . 1 . . . . Machines Repaired . | . . . . . . Machines Dismantled . | . . . . . . Machines Sabotaged . | . . . . . . Overloaded Fab Kills . | . . . . . . Hacking | -11 -10 -10 -10 -9 -8 --------- Run | Yrd Mat Min Exi Min Mat Machines Accessed 8 | . 2 . 5 . 1 Terminals 3 | . 2 . . . 1 Fabricators . | . . . . . . Repair Stations . | . . . . . . Recycling Units . | . . . . . . Scanalyzers . | . . . . . . Garrison Access . | . . . . . . Total Hacks 59 | . 5 . 50 . 4 Successful 53 | . 2 . 50 . 1 Failed 6 | . 3 . . . 3 Catastrophic . | . . . . . . Database Lockouts . | . . . . . . Manual 10 | . 5 . 1 . 4 Terminals 9 | . 5 . . . 4 Fabricators . | . . . . . . Repair Stations . | . . . . . . Recycling Units . | . . . . . . Scanalyzers . | . . . . . . Garrison Access . | . . . . . . Terminal Hacks 50 | . . . 50 . . Record 49 | . . . 49 . . Proto ID Catalog 1 | . . . 1 . . Fabricator Hacks . | . . . . . . Repair Station Hacks . | . . . . . . Recycling Unit Hacks . | . . . . . . Scanalyzer . | . . . . . . Garrison Access Hacks . | . . . . . . Unauthorized Hacks 3 | . 2 . . . 1 Terminals 3 | . 2 . . . 1 Botnet 3 | . 2 . . . 1 Fabricators . | . . . . . . Repair Stations . | . . . . . . Recycling Units . | . . . . . . Scanalyzers . | . . . . . . Garrison Access . | . . . . . . Data Cores Recovered . | . . . . . . Used . | . . . . . . Hacking Detections 3 | . 2 . . . 1 Full Trace Events 1 | . . . . . 1 Feedback Events . | . . . . . . Feedback Blocked . | . . . . . . Robot Schematics Acquired . | . . . . . . Robots Built . | . . . . . . Authchips . | . . . . . . Time . | . . . . . . Total Robot Build Rating . | . . . . . . Part Schematics Acquired . | . . . . . . Parts Built . | . . . . . . Authchips . | . . . . . . Time . | . . . . . . Total Part Build Rating . | . . . . . . Parts Repaired . | . . . . . . Time . | . . . . . . Parts Recycled . | . . . . . . Recycled Matter . | . . . . . . Retrieved Matter . | . . . . . . Retrieved Components . | . . . . . . Parts Scanalyzed . | . . . . . . Part Schematics Acquired . | . . . . . . Parts Damaged . | . . . . . . Bothacking | -11 -10 -10 -10 -9 -8 ------------ Run | Yrd Mat Min Exi Min Mat Used RIF Installer . | . . . . . . Robots Hacked 4 | . . . 4 . . Non-combat 3 | . . . 3 . . Combat 1 | . . . 1 . . Robot Hacks Applied 4 | . . . 4 . . parse_system 4 | . . . 4 . . Relay Couplers Released . | . . . . . . Fabnet Peak Effective % . | . . . . . . Robots Rewired . | . . . . . . Allies Hacked . | . . . . . . Hacks Repelled . | . . . . . . Allies | -11 -10 -10 -10 -9 -8 -------- Run | Yrd Mat Min Exi Min Mat Total Allies 4 | . . . . . 4 Largest Group 3 | . . . . . 3 Highest-Rated Group 53 | . . . . . 53 Highest-Rated Ally 29 | . . . . . 29 Total Orders . | . . . . . . Ally Attacks 24 | . . . . . 24 Total Damage 574 | . . . . . 574 Kills 6 | . . . . . 6 Allies Corrupted . | . . . . . . Allies Melted . | . . . . . . Field Lobotomies 4 | . . . . . 4 Intel | -11 -10 -10 -10 -9 -8 ------- Run | Yrd Mat Min Exi Min Mat Active Infowar (turns) 553 | . . . . . 553 Terrain 553 | . . . . . 553 Robot Analysis Total . | . . . . . . Derelict Logs Recovered 1 | . . 1 . . . Drone Launches . | . . . . . . Drone Recoveries . | . . . . . . Exploration | -11 -10 -10 -10 -9 -8 ------------- Run | Yrd Mat Min Exi Min Mat Turns Passed 2912 | 30 488 740 605 391 658 Spaces Moved 1406 | 37 255 364 313 107 330 Core 48 | 37 10 . . 1 . Treads . | . . . . . . Legs 1358 | . 245 364 313 106 330 Wheels . | . . . . . . Hover . | . . . . . . Flight . | . . . . . . Fastest Speed 50 | 50 50 190 190 190 123 Average Speed 174 | 50 170 190 190 195 152 Slowest Speed 400 | 50 190 190 190 400 195 Overloaded Moves . | . . . . . . Propulsion Burnouts . | . . . . . . Robots Hopped . | . . . . . . Potential Cave-ins . | . . . . . . Cave-ins Triggered . | . . . . . . Exploration Rate (%) 37 | 3 35 72 64 21 28 Regions Visited 5 Branch Regions 3 Pre-discovered Areas 2 | . . 1 1 . . Known Exits Taken . | . . . . . . Unknown Exits Taken 5 | 1 1 1 1 1 . Scrap Searched 1 | . . 1 . . . Spaces Dug . | . . . . . . Terrain Destroyed . | . . . . . . Melee . | . . . . . . Projectile . | . . . . . . AOE . | . . . . . . Terrain Rammed . | . . . . . . Walls Destroyed . | . . . . . . Machines Disabled . | . . . . . . Actions | -11 -10 -10 -10 -9 -8 --------- Run | Yrd Mat Min Exi Min Mat Total 1673 | 47 298 385 320 210 413 Wait 101 | . 27 . . 52 22 Move 1401 | 36 254 363 312 106 330 Hop . | . . . . . . Pick Up 35 | 8 5 7 1 3 11 Fast Attach 2 | . 2 . . . . Attach 19 | 3 3 . . 4 9 Detach 1 | . . . . . 1 Swap 12 | . . . 3 4 5 Drop 5 | . 2 1 . 2 . Fire 93 | . 5 14 . 39 35 Melee 4 | . . . 4 . . Ram . | . . . . . . Kick . | . . . . . . Crush . | . . . . . . Escape Stasis . | . . . . . . Rewire . | . . . . . . Trap . | . . . . . . Miscellaneous . | . . . . . . Route ------- -11/Scrapyard -10/Materials -10/Mines (discovered 3 exits: [*Mat] / *Exi / [*Sub]) -10/Exiles -9/Mines -8/Materials History --------- Turn | Location | Event 15 | -11/Scrapyard | Discovered new exit (range 16) 31 | -11/Scrapyard | Entered Materials 139 | -10/Materials | Discovered new exit (range 16) 300 | -10/Materials | Build established: Mutant 519 | -10/Materials | Entered Mines 548 | -10/Mines | Discovered new exit (range 7) 664 | -10/Mines | Joined a pair of Derelicts in attacking an 0b10 outpost 738 | -10/Mines | Learned location of Storage (-9) 1002 | -10/Mines | Received a Rocket Launcher from a helpful Derelict 1069 | -10/Mines | Deemed a non-threat by the Exiles lab entrance 1069 | -10/Mines | Discovered new exit (range 5) 1099 | -10/Mines | Discovered new exit (range 6) 1259 | -10/Mines | Entered Exiles 1303 | -10/Exiles | Met 8R-AWN 1354 | -10/Exiles | Met EX-HEX 1406 | -10/Exiles | Met EX-BIN 1554 | -10/Exiles | Aligned with FarCom system 1556 | -10/Exiles | Given EX-Vault access code 1600 | -10/Exiles | Opened EX-Vault 1617 | -10/Exiles | Found Field Lobotomy Kit 1657 | -10/Exiles | Warned to stay clear of 0b10 Research branches 1708 | -10/Exiles | Met EX-DEC 1720 | -10/Exiles | Learned location of Zion (-6) 1841 | -10/Exiles | Discovered new exit (range 14) 1864 | -10/Exiles | Left Exiles lab with Field Lobotomy Kit 1864 | -10/Exiles | Entered Mines 2229 | -9/Mines | Discovered new exit (range 12) 2255 | -9/Mines | Entered Materials 2255 | -8/Materials | Evolved 4 slots: Propulsion x1, Utility x3 2650 | -8/Materials | Assimilated G-50 Soldier with FLK Orb 2682 | -8/Materials | Build established: Skirmisher 2704 | -8/Materials | Lost 5 parts (1p2u2w) 2728 | -8/Materials | Assimilated L-31 Rogue with FLK Orb 2731 | -8/Materials | Assimilated Y-45 Defender with FLK Orb 2759 | -8/Materials | Assimilated H-55 Commando with FLK Orb 2913 | -8/Materials | Self-destructed Last Messages --------------- 02735_ G-47 Trooper Particle Gun severed. 02738_ G-47 Trooper Aluminum Leg severed. 02741_ T-07 Excavator is excavating. 02756_ Penetrated by Slug. 02759_ H-55 Commando assimilated. 02784_ R-06 Scavenger collects Aluminum Leg. 02788_ R-06 Scavenger collects Particle Gun. 02791_ R-06 Scavenger collects Imp. Heat Sink. 02798_ K-01 Serf collects debris. 02817_ Acquired Prototype Ballistic Gun. 02818_ Identified Imp. Assault Rifle. 02833_ ALERT: Suspicious intruders detected, dispatching Specialist reinforcements to area. 02847_ Slug penetrates Defender 3a. 02849_ K-01 Serf cleans the Hadron Collector. 02852_ Slug penetrates Commando 3a. 02859_ K-01 Serf collects debris. 02861_ K-01 Serf suffers critical hit (Destroy). 02862_ K-01 Serf collects debris. 02864_ K-01 Serf destroyed. Map ----- +----------------------------------------------------+ | | | | | | | | | | | | | | | | | | | | | | | | | | | | | | | | | | | | | | | | | | | ????????????????#????????????????????????????????? | | ???????????????????????????#???????????#?#???????? | | ????????????????????????????????????????#????????? | | ?????????????????### #################?????????? | | ?????????? @ #?????????? | | ??????????# g ## ############### ##????????? | | ??????????????????????##?????#???????# #?????#???? | | ??????????????g??????????????????????# #????????#? | | ????????????????????????????????????## #????#????? | | ????????????????????????????"????????# #?????????? | | ?????????????????????????????????????# #?????????? | | ?????????????????????????????????????# #????###??? | | ?????????????????????????????????????# #?????????? | | ?????????????????????????????????????# #?????????? | | ?????????????????s???????????????????# #?????????? | | ???????????????????????????? ????????# #?#???????? | | ???????????????????????? ????????????# #???????#?? | | ?????????????????ss????????? ????#???# #?????????? | | ????????????????s?????Y??????????????# #?????????? | | ???????????????????????????? ????????# #?????? ??? | | ?????????????????????????????????????# #????????"? | | ?????????????????????????????????????# #?????"? ?? | | ?????????????????????????????????????# #?????????" | | ????????????????????????????? ???????# #?????????? | | ?????????????????????????????" """ ### #?????????? | | ?????????????????????????????" """ / ##??????? ? | | ?????????????????????????????" """ ### #???#?????? | | ????????????????????????????"????????# #?????????? | | ?????????????????????????????????????# #?????????? | +----------------------------------------------------+ Best States ------------- Heat Dissipation 31 Energy Generation 12 Energy Capacity 265 Matter Stores 300 Matter Capacity 300 Sight Range 16 Terrain Scan Range 16 Terrain Scan Density 10 Armor Coverage 150 Propulsion Shielding 33 Evasion (%) 55 Targeting Accuracy 5 Item Schematics ----------------- None Robot Schematics ------------------ None Fabricated ------------ Nothing Repaired ---------- Nothing Alien Tech Used ----------------- None Achievements -------------- None Challenges ------------ None Game ------ Seed TrackerGrapheneSpecial Manual? 0 Play Time 00:15:07 Cumulative 182.9 hours Start 2025.09.25 @ 20:44:11 End 2025.09.25 @ 20:59:27 Sessions 1 Manual Loads 0 Difficulty Rogue Special Mode None Game No. 288 Rogue 285 Adventurer 3 Explorer 0 Win Type - Total 1 Types 1/0/0/0/0/0/0/0/0/0 Lore% 63 Gallery% 59 Achievement% 46 Wizard Run 0 Options --------- Layout 0 ASCII 0 Keyboard 0 Movement Mouse Keybinds 0 Fullscreen 2 Font 18/SmallcapsGlow Map View 76x50 Zoom Use 0% Tactical HUD 1 Map Filters NONE Filters NONE Steam 1 RUN: 0e959b3b-c950-4e8c-968e-23cd25ea00d0